[Event "*** Titled Tuesday Blitz"]
[Site "Chess.com"]
[Date "2020.10.20"]
[Round "3"]
[White "BigAl"]
[Black "esapunov"]
[Result "0-1"]
[WhiteElo "2466"]
[BlackElo "2757"]
[TimeControl "180+1"]
[EndTime "10:30:25 PDT"]
[Termination "esapunov won by resignation"]

1. Nf3 {[%clk 0:03:00.9]} 1... Nf6 {[%clk 0:02:59.7]} 2. g3 {[%clk 0:02:59.9]}
2... g6 {[%clk 0:03:00.1]} 3. Bg2 {[%clk 0:02:59.5]} 3... Bg7 {[%clk 0:03:00.8]}
4. O-O {[%clk 0:02:58.3]} 4... O-O {[%clk 0:03:01.4]} 5. d3 {[%clk 0:02:58.8]}
5... d6 {[%clk 0:03:01.6]} 6. e4 {[%clk 0:02:56.8]} 6... e5 {[%clk 0:03:01.7]}
7. Nc3 {[%clk 0:02:56.7]} 7... Re8 {[%clk 0:03:02.1]} 8. h3 {[%clk 0:02:57.1]}
8... b6 {[%clk 0:03:02.2]} 9. a4 {[%clk 0:02:56.4]} 9... a5 {[%clk 0:03:01.8]}
10. Bg5 {[%clk 0:02:53.2]} 10... h6 {[%clk 0:03:00.2]} 11. Be3 {[%clk
0:02:53.1]} 11... Bb7 {[%clk 0:02:56.3]} 12. Nh2 {[%clk 0:02:42]} 12... Nbd7
{[%clk 0:02:46.2]} 13. Qd2 {[%clk 0:02:36.1]} 13... Kh7 {[%clk 0:02:43.7]} 14.
f4 {[%clk 0:02:36.4]} 14... Nh5 {[%clk 0:02:27.9]} 15. Qf2 {[%clk 0:02:28.6]}
15... exf4 {[%clk 0:01:54.3]} 16. gxf4 {[%clk 0:02:28.1]} 16... Qe7 {[%clk
0:01:47.4]} 17. Rae1 {[%clk 0:02:24.4]} 17... Rab8 {[%clk 0:01:42]} 18. d4
{[%clk 0:02:20.2]} 18... f5 {[%clk 0:01:35.6]} 19. e5 {[%clk 0:02:14.1]} 19...
Qf7 {[%clk 0:01:26.2]} 20. Bxb7 {[%clk 0:02:13.3]} 20... Rxb7 {[%clk 0:01:26]}
21. Qg2 {[%clk 0:02:11.4]} 21... Rbb8 {[%clk 0:01:23]} 22. Nf3 {[%clk
0:02:06.4]} 22... Rbd8 {[%clk 0:01:12.2]} 23. Nb5 {[%clk 0:01:57]} 23... Nf8
{[%clk 0:01:08.5]} 24. c3 {[%clk 0:01:43.8]} 24... d5 {[%clk 0:01:08.3]} 25. Nh4
{[%clk 0:01:37.3]} 25... Ne6 {[%clk 0:01:06]} 26. Kh1 {[%clk 0:01:36.2]} 26...
Rg8 {[%clk 0:01:05.3]} 27. Qf2 {[%clk 0:01:33.6]} 27... Bf8 {[%clk 0:01:04.3]}
28. Rg1 {[%clk 0:01:34]} 28... c6 {[%clk 0:01:02.1]} 29. Nd6 {[%clk 0:01:28.1]}
29... Bxd6 {[%clk 0:01:01.7]} 30. exd6 {[%clk 0:01:28.6]} 30... Rxd6 {[%clk
0:01:02]} 31. Bd2 {[%clk 0:01:28.8]} 31... Nf6 {[%clk 0:01:01.6]} 32. Nf3 {[%clk
0:01:22.3]} 32... Ne4 {[%clk 0:00:57.4]} 33. Qh2 {[%clk 0:01:22.4]} 33... Qf6
{[%clk 0:00:52.5]} 34. Be3 {[%clk 0:01:14.3]} 34... Rdd8 {[%clk 0:00:49.7]} 35.
Ne5 {[%clk 0:01:13.8]} 35... c5 {[%clk 0:00:47.1]} 36. h4 {[%clk 0:01:09.2]}
36... Rg7 {[%clk 0:00:39.4]} 37. Rg2 {[%clk 0:01:09.1]} 37... cxd4 {[%clk
0:00:34]} 38. Bxd4 {[%clk 0:01:04]} 38... Nxd4 {[%clk 0:00:33.1]} 39. cxd4
{[%clk 0:01:04.4]} 39... Rdg8 {[%clk 0:00:27.8]} 40. Reg1 {[%clk 0:01:04.2]}
40... Qe6 {[%clk 0:00:24.9]} 41. b3 {[%clk 0:00:59]} 41... Nf6 {[%clk
0:00:24.8]} 42. Qh3 {[%clk 0:00:57.9]} 42... Qe8 {[%clk 0:00:21.5]} 43. Re2
{[%clk 0:00:49.8]} 43... Qc8 {[%clk 0:00:18.7]} 44. Reg2 {[%clk 0:00:48.6]}
44... h5 {[%clk 0:00:18.1]} 45. Nf3 {[%clk 0:00:48]} 45... Ng4 {[%clk
0:00:18.1]} 46. Ng5+ {[%clk 0:00:48]} 46... Kh6 {[%clk 0:00:18.3]} 47. Re2
{[%clk 0:00:46.3]} 47... Re8 {[%clk 0:00:18.5]} 48. Qd3 {[%clk 0:00:40.1]} 48...
Rge7 {[%clk 0:00:17.8]} 49. Re5 {[%clk 0:00:34.2]} 49... Rc7 {[%clk 0:00:13.8]}
50. Qb5 {[%clk 0:00:27.4]} 50... Rxe5 {[%clk 0:00:12.8]} 51. dxe5 {[%clk
0:00:27.3]} 51... Rc1 {[%clk 0:00:13.5]} 52. Qxd5 {[%clk 0:00:18.6]} 52... Qc2
{[%clk 0:00:13.1]} 53. Qg2 {[%clk 0:00:14.3]} 53... Rxg1+ {[%clk 0:00:13.2]} 54.
Kxg1 {[%clk 0:00:14.1]} 54... Qc1+ {[%clk 0:00:13.6]} 55. Qf1 {[%clk 0:00:14]}
55... Qe3+ {[%clk 0:00:13.8]} 56. Kh1 {[%clk 0:00:14.1]} 56... Qg3 {[%clk
0:00:13.8]} 57. Qg2 {[%clk 0:00:13.7]} 57... Qxh4+ {[%clk 0:00:14]} 58. Nh3
{[%clk 0:00:11.1]} 58... Qe1+ {[%clk 0:00:14.2]} 59. Ng1 {[%clk 0:00:11.6]}
59... Qe3 {[%clk 0:00:13.3]} 60. Ne2 {[%clk 0:00:08.6]} 60... Qxb3 {[%clk
0:00:12.8]} 61. Kg1 {[%clk 0:00:06.9]} 61... h4 {[%clk 0:00:12.5]} 62. Qh1
{[%clk 0:00:05.6]} 62... Qd1+ {[%clk 0:00:12.5]} 63. Kg2 {[%clk 0:00:04.7]}
63... Qxe2+ {[%clk 0:00:12.8]} 64. Kh3 {[%clk 0:00:05.6]} 64... Kh5 {[%clk
0:00:12.1]} 65. Qg2 {[%clk 0:00:03.4]} 65... Qxg2+ {[%clk 0:00:11.6]} 66. Kxg2
{[%clk 0:00:03.8]} 66... Kh6 {[%clk 0:00:10.5]} 67. Kh3 {[%clk 0:00:03]} 67...
Kg7 {[%clk 0:00:10.7]} 68. Kxh4 {[%clk 0:00:03.5]} 68... Ne3 {[%clk 0:00:11.4]}
69. Kg5 {[%clk 0:00:04.1]} 69... Nd5 {[%clk 0:00:11.9]} 70. e6 {[%clk
0:00:03.8]} 70... Ne7 {[%clk 0:00:12.3]} 71. Kh4 {[%clk 0:00:03.7]} 71... Kf6
{[%clk 0:00:12.9]} 72. Kg3 {[%clk 0:00:04.5]} 72... Kxe6 {[%clk 0:00:13.3]} 73.
Kf3 {[%clk 0:00:05.4]} 73... Kf6 {[%clk 0:00:14]} 0-1

[Event "*** Titled Tuesday Blitz"]
[Site "Chess.com"]
[Date "2020.10.20"]
[Round "3"]
[White "katchesskat"]
[Black "capatl"]
[Result "0-1"]
[WhiteElo "2236"]
[BlackElo "2539"]
[TimeControl "180+1"]
[EndTime "10:30:26 PDT"]
[Termination "capatl won by checkmate"]

1. c4 {[%clk 0:03:00.9]} 1... c5 {[%clk 0:03:00.3]} 2. e3 {[%clk 0:03:01]} 2...
e6 {[%clk 0:03:00.9]} 3. a3 {[%clk 0:03:01.6]} 3... Nf6 {[%clk 0:03:00.5]} 4.
Qc2 {[%clk 0:03:01.8]} 4... Be7 {[%clk 0:03:00.2]} 5. Nf3 {[%clk 0:03:01.8]}
5... O-O {[%clk 0:03:00.1]} 6. d3 {[%clk 0:03:02.1]} 6... b6 {[%clk 0:03:00.5]}
7. Nbd2 {[%clk 0:03:03]} 7... Bb7 {[%clk 0:02:59.6]} 8. Be2 {[%clk 0:03:03.9]}
8... d5 {[%clk 0:02:59.7]} 9. b3 {[%clk 0:03:04]} 9... Nbd7 {[%clk 0:02:59.5]}
10. Bb2 {[%clk 0:03:04.1]} 10... Rc8 {[%clk 0:02:59.8]} 11. h3 {[%clk 0:03:03]}
11... Qc7 {[%clk 0:02:58.1]} 12. g4 {[%clk 0:03:02.9]} 12... e5 {[%clk
0:02:35.9]} 13. g5 {[%clk 0:03:02.1]} 13... Ne8 {[%clk 0:02:35.5]} 14. cxd5
{[%clk 0:03:01.4]} 14... Bxd5 {[%clk 0:02:36]} 15. e4 {[%clk 0:02:59.1]} 15...
Bb7 {[%clk 0:02:24.9]} 16. h4 {[%clk 0:02:59.1]} 16... Bd6 {[%clk 0:02:20]} 17.
h5 {[%clk 0:02:56.6]} 17... b5 {[%clk 0:01:54.1]} 18. Nh4 {[%clk 0:02:47.8]}
18... f5 {[%clk 0:01:46]} 19. gxf6 {[%clk 0:02:43.5]} 19... Rxf6 {[%clk
0:01:45.5]} 20. Rg1 {[%clk 0:02:42.3]} 20... a6 {[%clk 0:01:34.8]} 21. Nf5
{[%clk 0:02:35.3]} 21... Kh8 {[%clk 0:01:10.6]} 22. Rg5 {[%clk 0:02:03.2]} 22...
Nf8 {[%clk 0:01:08.7]} 23. O-O-O {[%clk 0:02:00.4]} 23... Ne6 {[%clk 0:01:08.7]}
24. Rg4 {[%clk 0:01:45]} 24... Nd4 {[%clk 0:01:08.6]} 25. Bxd4 {[%clk
0:01:36.1]} 25... cxd4 {[%clk 0:01:09.5]} 26. Qxc7 {[%clk 0:01:35.6]} 26...
Bxa3+ {[%clk 0:01:08.9]} 27. Kb1 {[%clk 0:01:34.5]} 27... Rxc7 {[%clk
0:01:09.8]} 28. Rdg1 {[%clk 0:01:34.8]} 28... Bc8 {[%clk 0:01:07.9]} 29. Rg5
{[%clk 0:01:30.6]} 29... h6 {[%clk 0:00:56.4]} 30. R5g2 {[%clk 0:01:23.8]} 30...
Rfc6 {[%clk 0:00:25.7]} 31. Nf3 {[%clk 0:01:05.3]} 31... b4 {[%clk 0:00:16.2]}
32. Bd1 {[%clk 0:00:40.8]} 32... Bxf5 {[%clk 0:00:13.1]} 33. exf5 {[%clk
0:00:40.1]} 33... Rc1+ {[%clk 0:00:12.8]} 34. Ka2 {[%clk 0:00:39.5]} 34... R1c5
{[%clk 0:00:13.7]} 35. Nh4 {[%clk 0:00:35.7]} 35... Nf6 {[%clk 0:00:13.2]} 36.
Ng6+ {[%clk 0:00:34]} 36... Kg8 {[%clk 0:00:13.1]} 37. f4 {[%clk 0:00:34]} 37...
e4 {[%clk 0:00:12.7]} 38. dxe4 {[%clk 0:00:32.7]} 38... Nxe4 {[%clk 0:00:13.6]}
39. f6 {[%clk 0:00:22.4]} 39... Nxf6 {[%clk 0:00:13.2]} 40. Ne5 {[%clk
0:00:20.4]} 40... d3 {[%clk 0:00:13.1]} 41. Rg6 {[%clk 0:00:19.7]} 41... Rc2+
{[%clk 0:00:09.7]} 42. Bxc2 {[%clk 0:00:17.9]} 42... dxc2 {[%clk 0:00:10.6]} 43.
Rxf6 {[%clk 0:00:17.5]} 43... c1=Q {[%clk 0:00:10.3]} 44. Rxc1 {[%clk
0:00:17.6]} 44... Rxc1 {[%clk 0:00:11.2]} 45. Rxa6 {[%clk 0:00:17.4]} 45... Rc2+
{[%clk 0:00:11.5]} 46. Kb1 {[%clk 0:00:17.9]} 46... Rb2+ {[%clk 0:00:12.4]} 47.
Ka1 {[%clk 0:00:17.5]} 47... Rh2 {[%clk 0:00:11.8]} 48. Ng6 {[%clk 0:00:17.6]}
48... Rxh5 {[%clk 0:00:10.9]} 49. Ne7+ {[%clk 0:00:17.7]} 49... Kh7 {[%clk
0:00:10.7]} 50. f5 {[%clk 0:00:17.3]} 50... Rh1+ {[%clk 0:00:11]} 51. Ka2 {[%clk
0:00:16.6]} 51... Rf1 {[%clk 0:00:11.9]} 52. Rxa3 {[%clk 0:00:15]} 52... Rf2+
{[%clk 0:00:12.8]} 53. Kb1 {[%clk 0:00:14.8]} 53... bxa3 {[%clk 0:00:13.7]} 54.
Nd5 {[%clk 0:00:14.5]} 54... Rb2+ {[%clk 0:00:13.6]} 55. Ka1 {[%clk 0:00:14]}
55... Rxb3 {[%clk 0:00:14.5]} 56. Ka2 {[%clk 0:00:14.4]} 56... Rf3 {[%clk
0:00:14.6]} 57. Nc7 {[%clk 0:00:11.5]} 57... Rxf5 {[%clk 0:00:14.4]} 58. Kxa3
{[%clk 0:00:11.2]} 58... Rf3+ {[%clk 0:00:15.3]} 59. Kb4 {[%clk 0:00:11.3]}
59... h5 {[%clk 0:00:16.2]} 60. Kc4 {[%clk 0:00:11.8]} 60... h4 {[%clk
0:00:16.7]} 61. Ne6 {[%clk 0:00:12.4]} 61... Rf5 {[%clk 0:00:15.9]} 62. Kd4
{[%clk 0:00:11.1]} 62... h3 {[%clk 0:00:15.9]} 63. Ke4 {[%clk 0:00:11.1]} 63...
Rh5 {[%clk 0:00:15.6]} 64. Nf4 {[%clk 0:00:10.5]} 64... Rh4 {[%clk 0:00:16]} 65.
Kf3 {[%clk 0:00:10.3]} 65... Rxf4+ {[%clk 0:00:16.9]} 66. Kg3 {[%clk 0:00:11]}
66... g5 {[%clk 0:00:16.9]} 67. Kxh3 {[%clk 0:00:11.1]} 67... Kg6 {[%clk
0:00:17.8]} 68. Kg3 {[%clk 0:00:11.7]} 68... Kf5 {[%clk 0:00:18.7]} 69. Kg2
{[%clk 0:00:12.1]} 69... Ra4 {[%clk 0:00:19.6]} 70. Kg3 {[%clk 0:00:13]} 70...
Ra3+ {[%clk 0:00:20.5]} 71. Kg2 {[%clk 0:00:13.9]} 71... Kf4 {[%clk 0:00:20.9]}
72. Kf2 {[%clk 0:00:14.8]} 72... Ra2+ {[%clk 0:00:21]} 73. Ke1 {[%clk
0:00:14.2]} 73... Kf3 {[%clk 0:00:21]} 74. Kd1 {[%clk 0:00:14.5]} 74... g4
{[%clk 0:00:21]} 75. Kc1 {[%clk 0:00:15.4]} 75... Re2 {[%clk 0:00:21.4]} 76. Kb1
{[%clk 0:00:16.3]} 76... Ke3 {[%clk 0:00:21.9]} 77. Kc1 {[%clk 0:00:16.5]} 77...
Kd3 {[%clk 0:00:22.8]} 78. Kd1 {[%clk 0:00:17.4]} 78... g3 {[%clk 0:00:22.2]}
79. Kc1 {[%clk 0:00:16.8]} 79... g2 {[%clk 0:00:22.4]} 80. Kd1 {[%clk
0:00:17.7]} 80... g1=Q# {[%clk 0:00:18.8]} 0-1

[Event "*** Titled Tuesday Blitz"]
[Site "Chess.com"]
[Date "2020.10.20"]
[Round "3"]
[White "FloMasterAAK"]
[Black "TheCastleHunter"]
[Result "0-1"]
[WhiteElo "2518"]
[BlackElo "2362"]
[TimeControl "180+1"]
[EndTime "10:30:32 PDT"]
[Termination "TheCastleHunter won on time"]

1. e4 {[%clk 0:03:00.9]} 1... e6 {[%clk 0:02:58.9]} 2. d4 {[%clk 0:03:00.2]}
2... d5 {[%clk 0:02:59.2]} 3. Nc3 {[%clk 0:03:00.5]} 3... Nf6 {[%clk 0:02:58.5]}
4. Bg5 {[%clk 0:03:00]} 4... Be7 {[%clk 0:02:58.9]} 5. e5 {[%clk 0:03:00.1]}
5... Nfd7 {[%clk 0:02:58.7]} 6. h4 {[%clk 0:03:00.3]} 6... a6 {[%clk 0:02:56.3]}
7. Qg4 {[%clk 0:02:57.9]} 7... Kf8 {[%clk 0:02:49.5]} 8. Nf3 {[%clk 0:02:54.4]}
8... h6 {[%clk 0:02:49.1]} 9. Bf4 {[%clk 0:02:46.7]} 9... c5 {[%clk 0:02:47]}
10. O-O-O {[%clk 0:02:45.3]} 10... Nc6 {[%clk 0:02:45.9]} 11. Qg3 {[%clk
0:02:33.8]} 11... b5 {[%clk 0:02:43.3]} 12. Kb1 {[%clk 0:02:22]} 12... c4 {[%clk
0:02:22.2]} 13. Rh3 {[%clk 0:02:14.7]} 13... Rb8 {[%clk 0:02:10.6]} 14. Ne1
{[%clk 0:02:09.7]} 14... Qa5 {[%clk 0:01:57.1]} 15. Bc1 {[%clk 0:02:03.1]} 15...
b4 {[%clk 0:01:56.4]} 16. Ne2 {[%clk 0:02:02.5]} 16... b3 {[%clk 0:01:52.7]} 17.
cxb3 {[%clk 0:01:56.7]} 17... cxb3 {[%clk 0:01:53.6]} 18. axb3 {[%clk
0:01:52.8]} 18... Nb4 {[%clk 0:01:40.5]} 19. Nc3 {[%clk 0:01:51.8]} 19... Nc6
{[%clk 0:01:38.4]} 20. Na2 {[%clk 0:01:48]} 20... Qb6 {[%clk 0:01:22.5]} 21. Nc2
{[%clk 0:01:46.4]} 21... a5 {[%clk 0:01:20.8]} 22. Be2 {[%clk 0:01:44]} 22...
Nb4 {[%clk 0:01:19]} 23. Qf4 {[%clk 0:01:32.9]} 23... Ba6 {[%clk 0:00:54.2]} 24.
Bxa6 {[%clk 0:01:12]} 24... Qxa6 {[%clk 0:00:47.2]} 25. Rf3 {[%clk 0:01:05]}
25... f5 {[%clk 0:00:47.4]} 26. exf6 {[%clk 0:01:04.2]} 26... Bxf6 {[%clk
0:00:47.3]} 27. Naxb4 {[%clk 0:00:50.4]} 27... axb4 {[%clk 0:00:45.8]} 28. Qc7
{[%clk 0:00:49.9]} 28... Rd8 {[%clk 0:00:21.7]} 29. Bd2 {[%clk 0:00:46.7]} 29...
Qc8 {[%clk 0:00:20]} 30. Bxb4+ {[%clk 0:00:45.5]} 30... Kg8 {[%clk 0:00:20.3]}
31. Qg3 {[%clk 0:00:39]} 31... Re8 {[%clk 0:00:20.2]} 32. Re1 {[%clk 0:00:26.1]}
32... Kh7 {[%clk 0:00:20]} 33. h5 {[%clk 0:00:25.3]} 33... Rhg8 {[%clk
0:00:20.3]} 34. Qg6+ {[%clk 0:00:24.7]} 34... Kh8 {[%clk 0:00:20.6]} 35. Bd2
{[%clk 0:00:23.8]} 35... Nf8 {[%clk 0:00:20.5]} 36. Qd3 {[%clk 0:00:22.8]} 36...
Nh7 {[%clk 0:00:20.6]} 37. g4 {[%clk 0:00:21]} 37... Bg5 {[%clk 0:00:21]} 38.
Bxg5 {[%clk 0:00:18.2]} 38... Nxg5 {[%clk 0:00:21.9]} 39. Rfe3 {[%clk
0:00:18.1]} 39... Rgf8 {[%clk 0:00:21.7]} 40. Qe2 {[%clk 0:00:15.8]} 40... Qd7
{[%clk 0:00:20.2]} 41. Re5 {[%clk 0:00:15]} 41... Rf4 {[%clk 0:00:19.8]} 42. Qe3
{[%clk 0:00:13.3]} 42... Ref8 {[%clk 0:00:19.2]} 43. Nb4 {[%clk 0:00:10.6]}
43... Rxf2 {[%clk 0:00:18.6]} 44. Nd3 {[%clk 0:00:10.1]} 44... Qc7 {[%clk
0:00:18.4]} 45. Nxf2 {[%clk 0:00:08.7]} 45... Rf3 {[%clk 0:00:17]} 46. Qe2
{[%clk 0:00:07.8]} 46... Rxb3 {[%clk 0:00:17]} 47. Nd1 {[%clk 0:00:06.7]} 47...
Ne4 {[%clk 0:00:16.9]} 48. Rxe4 {[%clk 0:00:02.5]} 48... dxe4 {[%clk 0:00:17.8]}
49. Qxe4 {[%clk 0:00:03.3]} 49... Rb6 {[%clk 0:00:15]} 50. Qc2 {[%clk
0:00:04.2]} 50... Rc6 {[%clk 0:00:15.1]} 51. Qd2 {[%clk 0:00:04.1]} 51... Qd6
{[%clk 0:00:15]} 52. Nc3 {[%clk 0:00:04.1]} 52... Rc8 {[%clk 0:00:14.9]} 53. d5
{[%clk 0:00:05]} 53... exd5 {[%clk 0:00:14.7]} 54. Qxd5 {[%clk 0:00:05.3]} 54...
Qf6 {[%clk 0:00:14.8]} 55. Qd3 {[%clk 0:00:05]} 55... Rf8 {[%clk 0:00:14.9]} 56.
Qf5 {[%clk 0:00:04.5]} 56... Qd6 {[%clk 0:00:14.2]} 57. Qe4 {[%clk 0:00:03.3]}
57... Qg3 {[%clk 0:00:14.3]} 58. Rd1 {[%clk 0:00:03.3]} 58... Qc7 {[%clk
0:00:13.5]} 59. Qe2 {[%clk 0:00:02.6]} 59... Rb8 {[%clk 0:00:13.4]} 60. Rf1
{[%clk 0:00:02.6]} 60... Qb7 {[%clk 0:00:13.6]} 61. Rf2 {[%clk 0:00:01.7]} 61...
Rg8 {[%clk 0:00:13.5]} 62. Qe4 {[%clk 0:00:01.6]} 62... Qc7 {[%clk 0:00:13.5]}
63. Rd2 {[%clk 0:00:01.8]} 63... Qg3 {[%clk 0:00:13.5]} 64. Nd5 {[%clk
0:00:01.7]} 64... Qg1+ {[%clk 0:00:13.4]} 0-1

[Event "*** Titled Tuesday Blitz"]
[Site "Chess.com"]
[Date "2020.10.20"]
[Round "3"]
[White "ENajer77"]
[Black "tptagain"]
[Result "1-0"]
[WhiteElo "2709"]
[BlackElo "2906"]
[TimeControl "180+1"]
[EndTime "10:30:35 PDT"]
[Termination "ENajer77 won on time"]

1. e4 {[%clk 0:03:00.9]} 1... g6 {[%clk 0:02:58.8]} 2. d4 {[%clk 0:03:00.1]}
2... Bg7 {[%clk 0:02:59.4]} 3. Nc3 {[%clk 0:02:59.9]} 3... c6 {[%clk 0:02:59.9]}
4. h3 {[%clk 0:02:57.5]} 4... d6 {[%clk 0:02:59.1]} 5. Be3 {[%clk 0:02:56]} 5...
Nf6 {[%clk 0:02:56.3]} 6. g4 {[%clk 0:02:55.3]} 6... b5 {[%clk 0:02:53.2]} 7.
Bg2 {[%clk 0:02:50.4]} 7... b4 {[%clk 0:02:49.8]} 8. Nce2 {[%clk 0:02:50.1]}
8... a5 {[%clk 0:02:44.1]} 9. Ng3 {[%clk 0:02:49.8]} 9... Ba6 {[%clk 0:02:40.9]}
10. g5 {[%clk 0:02:49.4]} 10... Nfd7 {[%clk 0:02:40.7]} 11. h4 {[%clk
0:02:49.8]} 11... Nb6 {[%clk 0:02:16.7]} 12. b3 {[%clk 0:02:46.2]} 12... N8d7
{[%clk 0:02:08.1]} 13. h5 {[%clk 0:02:46.1]} 13... c5 {[%clk 0:02:08.1]} 14. h6
{[%clk 0:02:33.1]} 14... Bxd4 {[%clk 0:02:08.3]} 15. Bxd4 {[%clk 0:02:33.3]}
15... cxd4 {[%clk 0:02:09.2]} 16. Qxd4 {[%clk 0:02:33.3]} 16... Rg8 {[%clk
0:02:09.8]} 17. N1e2 {[%clk 0:02:07]} 17... Qc7 {[%clk 0:01:54.4]} 18. O-O
{[%clk 0:02:01.9]} 18... Rc8 {[%clk 0:01:30.6]} 19. a3 {[%clk 0:01:48.4]} 19...
Bxe2 {[%clk 0:01:29.5]} 20. Nxe2 {[%clk 0:01:47.6]} 20... Qxc2 {[%clk
0:01:30.2]} 21. Qe3 {[%clk 0:01:21]} 21... Qc5 {[%clk 0:01:24.5]} 22. Qd2 {[%clk
0:00:41.7]} 22... bxa3 {[%clk 0:01:24.4]} 23. Rfc1 {[%clk 0:00:40.3]} 23... Qb4
{[%clk 0:01:23.8]} 24. Rxc8+ {[%clk 0:00:40]} 24... Nxc8 {[%clk 0:01:23.7]} 25.
Qc1 {[%clk 0:00:40.7]} 25... Qc5 {[%clk 0:01:08.9]} 26. Rxa3 {[%clk 0:00:35.6]}
26... Qxc1+ {[%clk 0:01:03.4]} 27. Nxc1 {[%clk 0:00:34.7]} 27... Ncb6 {[%clk
0:00:50.9]} 28. Rxa5 {[%clk 0:00:33.9]} 28... e6 {[%clk 0:00:50.6]} 29. Ne2
{[%clk 0:00:21.2]} 29... Ke7 {[%clk 0:00:47]} 30. Nd4 {[%clk 0:00:20.5]} 30...
Rc8 {[%clk 0:00:47.5]} 31. Bf1 {[%clk 0:00:15.5]} 31... e5 {[%clk 0:00:39.2]}
32. Nb5 {[%clk 0:00:12.9]} 32... Rc1 {[%clk 0:00:32.5]} 33. Kg2 {[%clk
0:00:12.3]} 33... Rb1 {[%clk 0:00:32.5]} 34. Ra3 {[%clk 0:00:12]} 34... Nc5
{[%clk 0:00:25.6]} 35. f3 {[%clk 0:00:09.8]} 35... Rb2+ {[%clk 0:00:23.1]} 36.
Kg3 {[%clk 0:00:09.6]} 36... Rxb3 {[%clk 0:00:23.5]} 37. Ra7+ {[%clk 0:00:08.2]}
37... Nbd7 {[%clk 0:00:23.5]} 38. Kf2 {[%clk 0:00:06.2]} 38... Rb2+ {[%clk
0:00:21.4]} 39. Kg3 {[%clk 0:00:05.8]} 39... Rb3 {[%clk 0:00:20.6]} 40. Kf2
{[%clk 0:00:06]} 40... Nd3+ {[%clk 0:00:20.8]} 41. Bxd3 {[%clk 0:00:05.2]} 41...
Rxd3 {[%clk 0:00:21.7]} 42. Nc7 {[%clk 0:00:05.4]} 42... Rb3 {[%clk 0:00:16.6]}
43. Nd5+ {[%clk 0:00:05.8]} 43... Kd8 {[%clk 0:00:16.9]} 44. Ra8+ {[%clk
0:00:05.5]} 44... Rb8 {[%clk 0:00:16.2]} 45. Ra6 {[%clk 0:00:05.4]} 45... Ke8
{[%clk 0:00:13]} 46. Rxd6 {[%clk 0:00:05.1]} 46... Nc5 {[%clk 0:00:11.1]} 47.
Kg3 {[%clk 0:00:05.2]} 47... Ne6 {[%clk 0:00:10.8]} 48. Nf6+ {[%clk 0:00:04.6]}
48... Kf8 {[%clk 0:00:09.8]} 49. Kg4 {[%clk 0:00:03.8]} 49... Rb1 {[%clk
0:00:08.4]} 50. Nxh7+ {[%clk 0:00:03]} 50... Ke7 {[%clk 0:00:08.8]} 51. Rd5
{[%clk 0:00:03.1]} 51... Rg1+ {[%clk 0:00:09.3]} 52. Kh4 {[%clk 0:00:03.5]}
52... Rh1+ {[%clk 0:00:09.3]} 53. Kg4 {[%clk 0:00:04]} 53... Rg1+ {[%clk
0:00:09.6]} 54. Kh4 {[%clk 0:00:04.5]} 54... Rh1+ {[%clk 0:00:06.7]} 55. Kg3
{[%clk 0:00:04.7]} 55... Rg1+ {[%clk 0:00:05.8]} 56. Kf2 {[%clk 0:00:04.7]}
56... Rh1 {[%clk 0:00:04.9]} 57. Rxe5 {[%clk 0:00:04.8]} 57... Kd6 {[%clk
0:00:05.5]} 58. Rd5+ {[%clk 0:00:04.6]} 58... Ke7 {[%clk 0:00:06.1]} 59. Re5
{[%clk 0:00:05]} 59... Kd6 {[%clk 0:00:06.1]} 60. Rd5+ {[%clk 0:00:05.5]} 60...
Ke7 {[%clk 0:00:06.7]} 61. Ra5 {[%clk 0:00:05.5]} 61... Rh2+ {[%clk 0:00:06]}
62. Kg3 {[%clk 0:00:05.6]} 62... Rh1 {[%clk 0:00:06.5]} 63. Kg2 {[%clk 0:00:05]}
63... Rh5 {[%clk 0:00:04.8]} 64. Ra7+ {[%clk 0:00:05.2]} 64... Kd6 {[%clk
0:00:05]} 65. Rxf7 {[%clk 0:00:04]} 65... Ke5 {[%clk 0:00:05.3]} 66. Nf6 {[%clk
0:00:03.7]} 66... Rxg5+ {[%clk 0:00:05.2]} 67. Kh2 {[%clk 0:00:04]} 67... Nf4
{[%clk 0:00:03.3]} 68. h7 {[%clk 0:00:04.2]} 68... Rg2+ {[%clk 0:00:03.9]} 69.
Kh1 {[%clk 0:00:03.8]} 69... Rg3 {[%clk 0:00:04.4]} 70. Ng4+ {[%clk 0:00:04]}
70... Kd4 {[%clk 0:00:03.7]} 71. h8=Q+ {[%clk 0:00:03.7]} 1-0